bitfinex/quotes_SOLUSD_20240605
["timestamp","ask_amount","ask_price","bid_price","bid_amount"]
[1717606713133,9.2348,174.13,174.1,2.1252]
[1717606713620,9.2348,174.13,174.08,45.0]
[1717606713621,9.2348,174.13,174.09,2.1252]
[1717606715229,4.2492,174.15,174.09,2.1252]
[1717606715230,2.1246,174.15,174.11,2.125]
[1717606715435,7.11,174.13,174.11,2.125]
[1717606716130,2.1246,174.15,174.12,2.1249]
[1717606716336,9.2346,174.15,174.12,2.1249]
[1717606716830,9.2346,174.15,174.11,2.125]
[1717606717210,2.1247,174.14,174.11,2.125]
[1717606718727,9.2347,174.14,174.11,2.125]
[1717606720240,2.1248,174.13,174.1,2.1251]
[1717606720449,9.2347,174.14,174.1,2.1251]
[1717606720737,7.11,174.13,174.1,2.1251]
[1717606721035,10.6224,174.16,174.11,2.125]
[1717606721036,2.1246,174.15,174.11,2.125]
[1717606721235,7.11,174.14,174.11,2.125]
[1717606721426,7.11,174.13,174.11,2.125]
[1717606721622,2.1246,174.15,174.11,2.125]
[1717606721815,7.11,174.13,174.11,2.125]
[1717606722532,7.11,174.13,174.1,47.1251]
[1717606722736,7.11,174.13,174.11,2.125]
[1717606723239,2.1246,174.15,174.11,2.125]
[1717606723422,7.11,174.14,174.11,2.125]
[1717606724640,2.1247,174.14,174.11,2.125]
[1717606724938,9.2347,174.14,174.11,2.125]
[1717606725120,2.1247,174.14,174.11,2.125]
[1717606725321,9.2347,174.14,174.11,2.125]
[1717606725639,7.11,174.14,174.11,2.125]
[1717606726418,9.2347,174.14,174.11,2.125]
[1717606729348,7.11,174.13,174.1,47.1251]
[1717606729746,7.11,174.13,174.1,45.0]
[1717606729930,7.11,174.11,174.07,4.251]
[1717606730134,7.11,174.1,174.08,2.1254]
[1717606730450,7.11,174.09,173.98,263.2425]
[1717606730633,7.11,174.05,174.02,2.126]
[1717606730944,7.11,174.05,174.03,2.126]
[1717606731327,9.2358,174.05,174.01,2.1262]
[1717606731528,7.11,174.04,174.01,7.8622]
[1717606731744,7.11,174.02,173.99,2.1264]
[1717606731957,2.126,174.03,173.97,4.2535]
[1717606732137,2.1259,174.04,174.0,2.1264]
[1717606732532,8.48694021,174.05,173.97,4.2535]
[1717606732533,8.48694021,174.05,173.97,10.6338]
[1717606732742,7.11,174.03,173.98,4.2533]
[1717606733025,7.11,174.03,174.02,2.1261]
[1717606733228,7.11,174.04,174.01,2.1262]
[1717606733543,7.11,174.04,174.02,2.1261]
[1717606733953,7.11,174.04,174.01,2.1262]
[1717606736058,7.11,174.04,174.02,2.1261]
[1717606736429,7.11,174.04,174.01,2.1262]
[1717606736628,7.11,174.04,174.02,2.1261]
[1717606736927,7.11,174.05,174.02,2.1261]
[1717606737131,8.48591567,174.07,174.05,2.1258]
[1717606737449,8.48591567,174.07,174.05,2.1257]
[1717606737946,7.11,174.08,174.05,2.1257]
[1717606738143,7.11,174.08,174.04,45.0]
[1717606738144,7.11,174.08,174.06,2.1256]
[1717606738365,15.59591567,174.08,174.06,2.1256]
[1717606739260,7.11,174.08,174.06,2.1256]
[1717606739458,10.61121567,174.09,174.06,2.1256]
[1717606739636,7.11,174.08,174.06,2.1256]
[1717606740035,7.11,174.08,174.05,2.1257]
[1717606740231,10.61121567,174.09,174.06,2.1256]
[1717606740437,7.11,174.08,174.06,2.1256]
[1717606740637,7.11,174.08,174.05,2.1257]
[1717606741735,2.1253,174.09,174.05,2.1257]
[1717606742048,7.11,174.08,174.05,2.1257]
[1717606742355,10.61249341,174.1,174.06,2.1256]
[1717606742657,7.11,174.08,174.06,2.1256]
[1717606742951,7.11,174.08,174.05,2.1257]
[1717606744655,7.11,174.06,174.04,2.1259]
[1717606744831,7.11,174.05,174.02,2.1261]
[1717606745033,7.11,174.04,174.02,2.1261]
[1717606746065,7.11,174.05,174.03,2.126]
[1717606747450,7.11,174.06,174.03,2.126]
[1717606747639,9.2357,174.06,174.03,2.126]
[1717606747843,7.11,174.06,174.03,2.126]
[1717606748054,2.1256,174.07,174.03,2.126]
[1717606748256,7.11,174.06,174.04,2.1259]
[1717606748556,7.11,174.06,174.03,2.126]
[1717606748943,10.61289341,174.07,174.03,2.126]
[1717606749265,2.1256,174.07,174.03,2.126]
[1717606749646,7.11,174.06,174.03,2.126]
[1717606750176,7.11,174.06,174.04,2.1259]
[1717606750349,7.11,174.06,174.02,45.0]
[1717606750350,8.48729341,174.08,174.05,2.1258]
[1717606750545,10.61269341,174.08,174.05,2.1258]
[1717606750750,15.59729341,174.08,174.05,2.1258]
[1717606751171,8.48729341,174.08,174.06,2.1256]
[1717606751679,9.2352,174.1,174.07,2.1255]
[1717606752056,9.2352,174.1,174.06,2.1257]
[1717606753960,2.1253,174.09,174.05,2.1257]
[1717606754470,9.2352,174.1,174.06,2.1256]
[1717606754649,9.2352,174.1,174.06,47.1256]
[1717606755269,2.1253,174.09,174.06,45.0]
[1717606755445,2.1253,174.09,174.03,2.126]
[1717606755446,9.2356,174.07,174.03,2.126]
[1717606755650,9.2356,174.07,174.04,2.1259]
[1717606755651,7.11,174.07,174.04,2.1259]
[1717606756371,2.1254,174.09,174.05,2.1258]
[1717606756673,7.11,174.07,174.05,2.1258]
[1717606761875,7.11,174.06,174.04,2.1258]
[1717606762086,7.11,174.06,174.05,2.1258]
[1717606763596,7.11,174.07,174.05,2.1258]
[1717606766991,7.11,174.06,174.05,2.1258]
[1717606771291,2.1254,174.09,174.05,2.1258]
[1717606771593,15.60620632,174.07,174.06,2.1256]
[1717606772174,8.49620632,174.07,174.06,2.1256]
[1717606772376,15.60620632,174.07,174.06,2.1256]
[1717606773014,15.60646877,174.07,174.06,2.1256]
[1717606773304,8.49646877,174.07,174.06,2.1256]
[1717606775188,7.11,174.08,174.06,2.1256]
[1717606775901,7.11,174.07,174.06,2.1256]
[1717606776713,7.11,174.07,174.05,2.1257]
[1717606777005,8.49721403,174.06,174.05,2.1257]
[1717606777210,7.11,174.07,174.05,2.1257]
[1717606778920,7.11,174.07,174.06,2.1257]
[1717606779724,2.1253,174.09,174.06,2.1257]
[1717606779895,7.11,174.07,174.06,2.1257]
[1717606782306,7.11,174.07,174.05,2.1257]
[1717606782488,7.11,174.07,174.0,13.1715]
[1717606782489,7.11,174.07,174.0,7.11]
[1717606782696,7.11,174.07,173.88,40.5553]
[1717606782697,7.11,174.05,174.03,2.1259]
[1717606782912,7.11,174.05,174.02,4.2523]
[1717606782913,7.11,174.05,174.04,2.1259]
[1717606783118,7.11,174.06,174.05,2.1258]
[1717606783493,7.11,174.07,174.05,2.1258]
[1717606784415,2.1255,174.08,174.05,2.1258]
[1717606784725,7.11,174.06,174.05,2.1258]
[1717606785417,2.1255,174.08,174.05,2.1258]
[1717606785721,7.11,174.07,174.06,2.1256]
[1717606786227,7.11,174.07,174.05,2.1257]
[1717606787095,9.2355,174.07,174.02,4.2523]
[1717606787330,8.50805641,174.04,174.03,2.1259]
[1717606787693,15.61805641,174.04,173.99,10.6322]
[1717606787898,15.61805641,174.04,174.0,24.2528]
[1717606788103,7.11,174.03,174.02,2.1261]
[1717606788408,8.50805641,174.03,174.02,2.1261]
[1717606789815,15.61805641,174.03,174.01,47.1262]
[1717606790018,15.61805641,174.03,174.01,2.1262]
[1717606790414,7.11,174.02,174.01,2.1262]
[1717606790609,8.50805641,174.03,174.02,34.4977]
[1717606790942,8.50805641,174.04,174.03,27.7062]
[1717606791226,8.50805641,174.06,174.05,2.1258]
[1717606791602,8.50805641,174.06,174.05,47.1258]
[1717606793535,8.50805641,174.06,174.05,51.3774]
[1717606793735,8.50805641,174.07,174.06,2.1257]
[1717606793913,8.50805641,174.07,174.06,47.1257]
[1717606794250,8.50805641,174.08,174.07,2.1255]
[1717606794613,7.11,174.09,174.07,2.1255]
[1717606795835,7.11,174.1,174.07,2.1255]
[1717606797337,7.11,174.09,174.07,2.1255]
[1717606797516,2.125,174.11,174.07,2.1255]
[1717606797718,7.11,174.09,174.07,2.1255]
[1717606798319,7.11,174.09,174.06,47.1256]
[1717606798621,8.51248729,174.07,174.06,47.1256]
[1717606798826,8.51248729,174.07,174.06,2.1256]
[1717606799818,7.11,174.09,174.07,2.1255]
[1717606801049,22.2153,174.11,174.0,8.5052]
[1717606801367,2.126,174.04,174.0,2.1263]
[1717606801639,2.1258,174.05,174.0,2.1263]
[1717606801861,7.11,174.02,174.01,2.1263]
[1717606802747,2.1258,174.05,174.01,2.1263]
[1717606802935,2.1255,174.08,174.01,4.2525]
[1717606803121,2.1255,174.08,174.04,2.1258]
[1717606803122,7.11,174.06,174.04,2.1258]
[1717606803320,7.11,174.06,174.01,10.6313]
[1717606803321,8.08193568,174.09,174.05,2.1258]
[1717606803520,8.08193568,174.09,174.05,2.1257]
[1717606803521,2.1253,174.09,174.05,2.1257]
[1717606803740,6.2255,174.11,174.04,6.3777]
[1717606803943,5.95720726,174.11,174.05,6.3774]
[1717606804260,7.11,174.09,174.07,2.1254]
[1717606804428,7.11,174.09,174.06,47.1256]
[1717606805445,7.11,174.08,174.05,2.1257]
[1717606805743,7.11,174.07,174.05,2.1257]
[1717606806064,7.11,174.07,174.04,47.1258]
[1717606806220,7.11,174.07,174.04,2.1258]
[1717606806416,7.11,174.06,174.04,2.1258]
[1717606806635,7.11,174.05,174.01,10.6311]
[1717606806842,7.11,174.05,174.03,2.1259]
[1717606808435,7.11,174.05,174.02,2.126]
[1717606808648,7.11,174.04,174.02,2.126]
[1717606809251,7.11,174.05,174.03,2.126]
[1717606809753,7.11,174.05,174.02,2.1261]
[1717606809932,7.11,174.03,174.02,2.1261]
[1717606810538,2.1257,174.06,174.02,2.1261]
[1717606810751,7.11,174.04,174.0,4.2528]
[1717606810957,7.11,174.05,174.0,4.2528]
[1717606811153,7.11,174.05,174.0,10.632]
[1717606811464,7.11,174.04,174.02,2.1261]
[1717606811778,7.11,174.04,174.0,4.2528]
[1717606813577,2.1257,174.06,174.0,4.2528]
[1717606813756,7.11,174.04,174.0,4.2528]
[1717606814858,7.11,174.03,173.98,4.2532]
[1717606815059,7.11,174.03,174.0,2.1264]
[1717606815378,7.11,174.03,174.01,2.1262]
[1717606815574,7.11,174.02,173.99,2.1264]
[1717606815787,7.11,174.01,173.98,2.1266]
[1717606815991,2.1262,174.02,173.98,2.1266]
[1717606815992,7.11,174.0,173.98,2.1266]
[1717606816651,7.11,174.0,173.97,2.1267]
[1717606817497,7.11,173.99,173.97,2.1267]
[1717606817662,7.11,174.0,173.98,2.1266]
[1717606817861,7.11,174.0,173.97,2.1267]
[1717606818369,7.11,174.0,173.94,7.11]
[1717606818370,2.1261,174.03,173.99,2.1265]
[1717606818682,7.11,174.0,173.99,2.1265]
[1717606818979,7.11,174.01,173.99,2.1265]
[1717606819158,7.11,174.01,173.98,2.1266]
[1717606819355,7.11,173.99,173.93,4.2544]
[1717606819558,7.11,173.98,173.95,2.127]
[1717606819777,7.11,173.98,173.93,4.2544]
[1717606820567,7.11,173.96,173.88,6.4795]
[1717606820856,7.11,173.95,173.88,10.7351]
[1717606821085,7.11,173.95,173.92,2.1274]
[1717606821299,7.11,173.96,173.92,2.1274]
[1717606822164,2.1269,173.96,173.92,2.1274]
[1717606822480,9.5768,173.97,173.92,2.1274]
[1717606822786,7.11,173.96,173.92,2.1273]
[1717606823077,7.11,173.96,173.9,7.11]
[1717606823268,2.4668,173.97,173.92,2.1274]
[1717606823470,9.5768,173.97,173.92,2.1274]
[1717606823873,9.4068,173.97,173.92,2.1274]
[1717606824072,9.2368,173.97,173.93,2.1272]
[1717606824282,9.2368,173.97,173.92,2.1273]
[1717606824503,7.11,173.96,173.92,2.1273]
[1717606824788,9.2369,173.96,173.92,2.1273]
[1717606824962,2.1269,173.96,173.92,2.1273]
[1717606825282,7.11,173.96,173.92,2.1273]
[1717606825490,7.11,173.96,173.91,45.0]
[1717606825694,7.11,173.96,173.93,2.1272]
[1717606825864,2.1268,173.97,173.94,2.1271]
[1717606825865,7.11,173.97,173.94,2.1271]
[1717606826067,7.11,173.97,173.93,2.1272]
[1717606826371,7.11,173.97,173.94,2.1271]
[1717606826572,7.11,173.97,173.93,2.1272]
[1717606827083,5.94502045,173.99,173.93,2.1272]
[1717606827293,2.1262,174.02,173.96,7.11]
[1717606827496,41.8506,174.07,173.97,7.11]
[1717606827666,2.1258,174.05,174.01,2.1262]
[1717606828583,13.05571856,174.06,174.01,7.11]
[1717606828584,5.94571856,174.06,174.01,7.11]
[1717606828792,5.94571856,174.06,174.03,2.126]
[1717606829089,6.5346,174.11,174.04,7.11]
[1717606829268,8.6597,174.11,174.07,2.1255]
[1717606829466,2.1251,174.11,174.07,2.1255]
[1717606829781,5.94565853,174.12,173.99,6.1546]
[1717606829984,6.2486,174.15,174.1,2.1251]
[1717606829985,2.1246,174.15,174.1,2.1251]
[1717606830160,5.94512127,174.15,174.12,2.1249]
[1717606830364,5.94512127,174.15,174.13,2.1248]
[1717606830584,2.1244,174.17,174.13,2.1248]
[1717606830775,9.2342,174.18,174.13,2.1248]
[1717606831166,2.1242,174.18,174.14,2.1246]
[1717606831364,8.06771075,174.19,174.14,2.1246]
[1717606831579,5.94361075,174.19,174.12,4.2497]
[1717606831871,7.11,174.17,174.11,7.11]
[1717606832081,7.11,174.16,174.09,20.0]
[1717606832258,7.11,174.14,174.1,2.1252]
[1717606832687,7.11,174.14,174.08,2.1254]
[1717606832874,2.1248,174.14,174.06,27.11]
[1717606833074,8.4981,174.16,174.04,6.4084]
[1717606833392,7.11,174.1,174.04,7.11]
[1717606833593,7.11,174.09,174.05,2.1258]
[1717606833774,2.1257,174.06,174.01,2.1262]
[1717606834100,9.2357,174.06,174.01,2.1262]
[1717606834793,10.6261,174.1,173.99,7.11]
[1717606834794,2.1256,174.07,174.02,2.1261]
[1717606834994,7.11,174.06,174.03,2.126]
[1717606835309,2.1254,174.09,174.04,2.1259]
[1717606835462,7.11,174.08,174.04,2.1259]
[1717606835886,2.1254,174.08,174.04,2.1259]
[1717606836064,0.17,174.11,173.98,27.9425]
[1717606836277,6.5414,174.13,174.09,2.1252]
[1717606836492,2.1247,174.14,174.09,2.1252]
[1717606836714,6.3824,174.17,174.11,2.125]
[1717606836876,2.1245,174.16,174.11,2.125]
[1717606837077,2.1245,174.16,174.08,20.0]
[1717606837281,2.1245,174.16,174.11,2.125]
[1717606837566,2.1246,174.15,174.09,2.1252]
[1717606837787,2.125,174.12,174.08,2.1254]
[1717606837965,4.249,174.16,174.08,2.1254]
[1717606838192,2.1249,174.13,174.08,2.1254]
[1717606838801,2.1249,174.12,174.07,2.1255]
[1717606838996,0.17,174.15,174.07,2.1255]
[1717606839313,2.1249,174.12,174.07,2.1255]
[1717606839618,2.1248,174.13,174.08,2.1253]
[1717606840889,0.34,174.15,174.1,2.1251]
[1717606840890,8.847,174.15,174.1,2.1251]
[1717606841093,2.1247,174.14,174.06,4.2512]
[1717606841302,2.1247,174.14,174.07,45.0]
[1717606841707,2.1248,174.13,174.07,45.0]
[1717606842398,8.07124918,174.14,174.07,45.0]
[1717606844004,21.39,174.19,174.11,2.125]
[1717606844005,2.1245,174.16,174.11,2.125]
[1717606845417,5.94575633,174.17,174.07,51.3766]
[1717606845723,2.1244,174.16,174.11,2.125]
[1717606845887,8.07015633,174.17,174.12,2.1249]
[1717606846294,10.7754,174.23,174.16,2.1244]
[1717606846597,2.124,174.2,174.15,2.1244]
[1717606846797,2.1242,174.18,174.1,61.9921]
[1717606846995,2.1242,174.18,174.13,2.1247]
[1717606847504,5.94429176,174.22,174.12,45.0]
[1717606847704,5.94429176,174.22,174.19,2.124]
[1717606847910,2.1236,174.24,174.19,2.124]
[1717606848212,2.1236,174.24,174.2,2.1239]
[1717606848404,2.1236,174.24,174.19,2.124]
[1717606849524,5.94526715,174.25,174.19,4.2482]
[1717606849825,2.1232,174.26,174.21,2.1238]
[1717606850126,2.1233,174.25,174.21,2.1238]
[1717606850420,8.06817832,174.26,174.21,2.1238]
[1717606850625,2.1233,174.25,174.21,2.1238]
[1717606851191,2.1232,174.27,174.22,2.1236]
[1717606851494,5.94505767,174.27,174.2,45.0]
[1717606851694,8.06815767,174.27,174.22,2.1236]
[1717606852292,8.06815767,174.27,174.21,2.1238]
[1717606852293,2.1232,174.26,174.21,2.1238]
[1717606853093,2.1234,174.25,174.2,47.1239]
[1717606853297,2.1234,174.25,174.2,2.1239]
[1717606853619,5.94505767,174.27,174.19,45.0]
[1717606853820,8.06815767,174.27,174.22,2.1236]
[1717606854619,2.1232,174.26,174.21,2.1238]
[1717606854926,2.1233,174.25,174.21,2.1238]
[1717606855617,2.1233,174.26,174.21,2.1238]
[1717606856005,5.94505767,174.27,174.21,6.3713]
[1717606856220,2.1228,174.3,174.25,2.1233]
[1717606856520,2.1229,174.29,174.25,2.1233]
[1717606856722,2.1229,174.29,174.24,2.1234]
[1717606857224,2.123,174.28,174.24,2.1234]
[1717606857803,2.1229,174.29,174.24,2.1234]
[1717606858600,2.123,174.28,174.23,47.1236]
[1717606858796,0.17,174.3,174.23,45.0]
[1717606858797,2.1229,174.29,174.23,45.0]
[1717606858997,2.2928,174.3,174.24,2.1233]
[1717606859403,6.11900626,174.31,174.23,4.2472]
[1717606859601,5.94900626,174.31,174.24,45.0]
[1717606859832,5.94900626,174.31,174.25,20.0]
[1717606860007,2.1224,174.33,174.27,2.123]
[1717606860325,2.1225,174.32,174.26,47.1232]
[1717606860633,2.1226,174.31,174.26,45.0]
[1717606861121,2.1227,174.3,174.25,22.1233]
[1717606861327,2.1226,174.31,174.25,2.1233]
[1717606861541,8.07752903,174.33,174.27,2.1231]
[1717606861822,2.1222,174.35,174.29,2.1228]
[1717606862028,8.07545247,174.35,174.29,2.1228]
[1717606862404,2.1223,174.34,174.28,47.1229]
[1717606862711,2.1223,174.34,174.29,2.1228]
[1717606862911,2.1224,174.33,174.28,45.0]
[1717606863312,2.1225,174.32,174.28,45.0]
[1717606863619,6.3674,174.33,174.23,2.1235]
[1717606863809,43.45785247,174.35,174.22,6.4535]
[1717606863810,2.1227,174.3,174.22,6.4535]
[1717606864136,2.1227,174.31,174.22,6.4535]
[1717606864345,2.1228,174.3,174.22,6.4535]
[1717606864843,2.1228,174.3,174.24,2.1234]
[1717606865021,5.95325247,174.35,174.31,2.1226]
[1717606865334,2.1225,174.32,174.26,2.1231]
[1717606865525,2.1225,174.32,174.25,65.0]
[1717606865726,2.1225,174.33,174.27,2.123]
[1717606865930,2.1225,174.33,174.27,47.123]
[1717606866311,2.1223,174.34,174.28,2.1229]
[1717606866504,5.95325247,174.35,174.23,4.2472]
[1717606866726,2.1228,174.3,174.24,2.1234]
[1717606867027,2.1227,174.3,174.24,20.0]
[1717606867213,2.1227,174.31,174.24,20.0]
[1717606867416,2.1227,174.31,174.25,2.1233]
[1717606867914,2.1227,174.3,174.25,2.1233]
[1717606868118,2.1227,174.3,174.24,47.1234]
[1717606868530,2.1229,174.29,174.24,47.1234]
[1717606868724,2.123,174.28,174.22,6.4535]
[1717606868925,2.123,174.28,174.2,4.2479]
[1717606869236,2.123,174.28,174.22,2.1237]
[1717606869553,2.1231,174.27,174.22,2.1237]
[1717606870044,2.123,174.28,174.22,2.1237]
[1717606870252,2.1229,174.29,174.24,2.1234]
[1717606870415,2.1226,174.31,174.26,2.1231]
[1717606870743,2.1226,174.31,174.21,45.0]
[1717606870744,2.1227,174.3,174.25,2.1233]
[1717606870913,2.1227,174.3,174.22,26.3711]
[1717606870914,2.1229,174.29,174.24,47.1234]
[1717606871419,2.123,174.28,174.23,47.1235]
[1717606871614,2.123,174.28,174.23,45.0]
[1717606871813,2.123,174.28,174.23,2.1236]
[1717606872036,2.123,174.28,174.23,47.1236]
[1717606872736,2.123,174.28,174.23,45.0]
[1717606873031,2.1232,174.26,174.2,2.1239]
[1717606873255,2.1234,174.25,174.19,2.124]
[1717606873444,2.1234,174.25,174.2,2.1239]
[1717606874514,2.1233,174.26,174.2,2.1239]
[1717606875832,4.2463,174.27,174.19,45.0]
[1717606876043,2.1234,174.25,174.19,2.124]
[1717606876221,2.1235,174.24,174.18,2.1241]
[1717606876417,2.1235,174.24,174.17,20.0]
[1717606876418,4.2467,174.25,174.17,22.1243]
[1717606876735,2.1237,174.22,174.17,2.1243]
[1717606876925,2.1236,174.23,174.17,2.1243]
[1717606877314,2.4635,174.24,174.18,2.1241]
[1717606878129,2.4635,174.24,174.19,2.1241]
[1717606878329,2.4635,174.24,174.18,2.1241]
[1717606879348,2.1236,174.23,174.18,2.1241]
[1717606879547,2.4635,174.24,174.18,2.1241]
[1717606879918,2.4635,174.24,174.19,2.1241]
[1717606879919,0.17,174.24,174.19,2.1241]
[1717606880120,8.3499,174.25,174.19,2.1241]
[1717606880428,2.1232,174.26,174.2,2.1239]
[1717606880753,2.1233,174.26,174.18,4.2484]
[1717606880926,2.1233,174.26,174.19,45.0]
[1717606881719,2.1231,174.27,174.19,45.0]
[1717606882241,2.1231,174.27,174.22,2.1237]
[1717606882422,2.1231,174.27,174.21,2.1238]
[1717606882825,2.1232,174.26,174.21,2.1238]
[1717606883051,2.1238,174.22,174.08,4.50037314]
[1717606883237,2.2936,174.23,174.14,24.2493]
[1717606883432,2.1237,174.22,174.17,2.1243]
[1717606884042,18.21700478,174.24,174.18,2.1242]
[1717606884239,2.1236,174.23,174.18,2.1242]
[1717606884948,20.34050478,174.24,174.18,2.1242]
[1717606885441,20.34050478,174.24,174.19,2.1241]
[1717606885625,18.21700478,174.24,174.18,2.1241]
[1717606885822,20.34050478,174.24,174.18,2.1241]
[1717606886424,18.21700478,174.24,174.19,2.124]
[1717606886642,18.21700478,174.24,174.2,2.1239]
[1717606887244,18.21700478,174.24,174.19,2.124]
[1717606888120,20.34050478,174.24,174.19,2.124]
[1717606889850,2.1235,174.24,174.18,2.1241]
[1717606890029,2.1236,174.23,174.18,2.1241]
[1717606890348,2.1236,174.23,174.17,28.90709522]
[1717606891822,2.1235,174.24,174.17,28.90709522]
[1717606892231,2.1234,174.25,174.17,28.90709522]
[1717606892441,2.1235,174.24,174.19,2.124]
[1717606892641,6.3694,174.27,174.18,2.1241]
[1717606892851,2.1236,174.23,174.18,2.1241]
[1717606894030,2.1235,174.24,174.18,2.1241]
[1717606895049,4.2465,174.26,174.18,2.1241]
[1717606895432,2.1236,174.23,174.18,2.1241]
[1717606895645,10.53313537,174.28,174.17,35.52189522]
[1717606895851,4.2457,174.3,174.19,4.2482]
[1717606896057,2.123,174.28,174.23,2.1236]
[1717606896253,2.1229,174.29,174.24,2.1234]
[1717606897458,2.1228,174.3,174.24,2.1234]
[1717606898025,12.3131421,174.33,174.21,20.0]
[1717606898254,2.1228,174.3,174.25,2.1233]
[1717606898937,2.1229,174.29,174.24,22.1234]
[1717606899441,4.4151,174.32,174.25,2.1233]
[1717606899642,2.1229,174.29,174.24,2.1234]
[1717606900446,2.1228,174.3,174.25,2.1233]
[1717606901274,2.1226,174.31,174.26,2.1232]
[1717606901443,2.1225,174.32,174.27,2.123]
[1717606901759,2.1226,174.31,174.26,2.1231]
[1717606901961,2.1226,174.31,174.27,2.1231]
[1717606902143,2.1225,174.32,174.27,2.1231]
[1717606902868,4.2454,174.31,174.24,2.1234]
[1717606903038,2.1229,174.29,174.22,20.0]
[1717606903364,2.1229,174.29,174.24,2.1234]
[1717606903660,2.1229,174.29,174.24,22.1234]
[1717606903867,4.2454,174.31,174.24,22.1234]
[1717606904077,2.1229,174.29,174.24,22.1234]
[1717606904240,6.3683,174.3,174.22,2.1236]
[1717606904555,2.1231,174.27,174.22,2.1236]
[1717606905148,2.1232,174.26,174.21,2.1238]
[1717606905358,2.1234,174.25,174.2,2.1239]
[1717606907167,27.848,174.31,174.13,6.255]
[1717606907374,2.1236,174.23,174.18,2.1242]
[1717606907552,8.3741,174.23,174.18,2.1242]
[1717606909159,2.1235,174.24,174.19,2.124]
[1717606909380,19.6675,174.27,174.14,20.0]
[1717606909667,2.1234,174.25,174.2,2.1239]
[1717606910179,2.1235,174.24,174.18,20.0]
[1717606910359,2.1235,174.24,174.19,2.124]
[1717606910751,2.1237,174.22,174.17,2.1242]
[1717606911155,2.1238,174.21,174.16,22.1244]
[1717606911551,2.1238,174.22,174.17,2.1243]
[1717606911953,8.2392,174.22,174.17,2.1243]
[1717606912958,2.1239,174.21,174.16,22.1244]
[1717606913160,2.1239,174.21,174.16,2.1244]
[1717606913161,8.464,174.21,174.16,2.1244]
[1717606913366,8.464,174.21,174.17,20.0]
[1717606913959,6.3401,174.21,174.15,2.1245]
[1717606914157,8.464,174.21,174.16,2.1244]
[1717606915382,6.3401,174.21,174.14,24.2493]
[1717606915678,6.3401,174.21,174.18,2.1242]
[1717606915982,6.3401,174.21,174.1,20.0]
[1717606916164,6.3401,174.21,174.11,45.0]
[1717606916373,5.99285522,174.23,174.12,20.0]
[1717606916672,5.99285522,174.23,174.13,45.0]
[1717606916902,5.99285522,174.23,174.14,20.0]
[1717606917181,0.17,174.22,174.14,20.0]
[1717606917360,0.34,174.22,174.14,20.0]
[1717606918267,0.34,174.22,174.1,20.0]
[1717606918475,0.34,174.22,174.11,45.0]
[1717606918978,0.34,174.22,174.12,20.0]
[1717606921579,0.17,174.22,174.13,45.0]
[1717606921782,5.99285522,174.23,174.14,20.0]
[1717606921960,6.4102,174.25,174.15,45.0]
[1717606922285,5.98676383,174.23,174.16,20.0]
[1717606924686,0.17,174.22,174.1,20.0]
[1717606924870,0.17,174.22,174.11,45.0]